Cogmind - Beta 13 @@@ ROGUE MODE // 2024.04.05 @ 03:08:31 Player: writers.room Result: Core destroyed Performance ------------- Evolutions (2) 1000 Regions Visited (3) 600 Robots Destroyed (7) 35 Value Destroyed (319) 319 Prototype IDs (0) 0 Alien Tech Used (0) 0 Bonus (470) 470 TOTAL SCORE: 2424 Bonus ------- Pacifist 470 Cogmind --------- Core Integrity 0/550 Matter 300/300 Energy 100/100 System Corruption 0% Temperature Cool (0) Movement Core (50) Location -8/Materials Parts ------- > --- POWER (2) -------- (None) > --- PROPULSION (3) --- (None) > --- UTILITY (4) ------ (None) > --- WEAPON (2) ------- (None) > --- INVENTORY (5) ---- (None) Peak State ------------ > --- POWER ------------ Nuclear Core > --- PROPULSION ------- Aluminum Leg Aluminum Leg Aluminum Leg > --- UTILITY ---------- Thermal Generator Thermal Generator Improved Heat Sink Weapon Cycler > --- WEAPON ----------- Concussive RPG Concussive RPG > --- INVENTORY -------- (None) [Rating: 25] Favorites ----------- Power Nuclear Core Engine Backup Power I Power Core Nuclear Core Propulsion Aluminum Leg Leg Aluminum Leg Utility Thermal Generator Device Thermal Generator Weapon Backup Laser I Energy Gun Backup Laser I Launcher Concussive RPG Build | -11 -10 -9 -8 ------- Run | Yrd Mat Mat Mat Slots Evolved 4 | . . 2 2 Power 1 | . . . 1 Propulsion 1 | . . 1 . Utility 2 | . . 1 1 Weapon . | . . . . Parts Attached 16 | . . . 16 Power 2 | . . . 2 Engine . | . . . . Core 2 | . . . 2 Reactor . | . . . . Propulsion 3 | . . . 3 Treads . | . . . . Leg 3 | . . . 3 Wheel . | . . . . Hover . | . . . . Flight . | . . . . Utility 6 | . . . 6 Device 6 | . . . 6 Storage . | . . . . Processor . | . . . . Hackware . | . . . . Protection . | . . . . Artifact . | . . . . Weapon 5 | . . . 5 Energy Gun 3 | . . . 3 Energy Cannon . | . . . . Ballistic Gun . | . . . . Ballistic Cannon . | . . . . Launcher 2 | . . . 2 Special Weapon . | . . . . Impact Weapon . | . . . . Slashing Weapon . | . . . . Piercing Weapon . | . . . . Special Melee Weapon . | . . . . Unidentified Prototypes . | . . . . Parts Lost 10 | . . . 10 Power 2 | . . . 2 Propulsion 3 | . . . 3 Utility 3 | . . . 3 Weapon 2 | . . . 2 Highest Loss Streak 10 | . . . 10 To Critical Strikes . | . . . . Average Slot Usage (%) 31 | . . . 48 Core 3 | . . . 5 Leg 10 | . . . 15 Device 13 | . . . 20 Energy Gun 3 | . . . 5 Naked Turns 199 | . 90 50 59 Heaviest Build 26 | . . . 26 Greatest Support 30 | 3 3 3 30 Greatest Overweight (x) 1 | . . . 1 Average Overweight (x) . | . . . . Largest Inventory Capacity 5 | 5 5 5 5 Average Capacity 5 | 5 5 5 5 Most Carried 4 | . . . 4 Average Carried . | . . . . Final Capacity 5 | 5 5 5 5 Final Carried . | . . . . Class Distribution -------------------- 51% | Mutant 48% | Scavenger-Mutant Dominant Class ---------------- Mutant | -10/Materials Mutant | -9/Materials Scavenger-Mutant | -8/Materials Resources | -11 -10 -9 -8 ----------- Run | Yrd Mat Mat Mat Matter Collected 272 | 52 . . 220 Remotely . | . . . . Salvage Created 379 | . . . 379 Parts 12 | . . . 12 Haulers Intercepted . | . . . . Recyclers Shooed . | . . . . Parts Field Recycled . | . . . . Retrieved Matter . | . . . . Parts Self-Destructed . | . . . . Prevented . | . . . . Kills | -11 -10 -9 -8 ------- Run | Yrd Mat Mat Mat Combat Hostiles Destroyed 7 | . . . 7 Melee 1 | . . . 1 Guns 4 | . . . 4 Classes Destroyed 3 | . . . 3 Grunt 5 | . . . 5 Brawler 1 | . . . 1 Sentry 1 | . . . 1 Best Kill Streak 4 | . . . 4 Combat Bots Only 4 | . . . 4 Max Kills in Single Turn 1 | . . . 1 Gunslinging . | . . . . Exploded . | . . . . Melee 1 | . . . 1 Uniques/NPCs Destroyed . | . . . . Combat | -11 -10 -9 -8 -------- Run | Yrd Mat Mat Mat Hostile Shots Fired 92 | . . . 92 Missed 16 | . . . 16 Damage Taken 1225 | . . . 1225 Core 551 | . . . 551 Absorbed by Shields . | . . . . Core Remaining (%) 100 | 100 100 100 . Volleys Fired 28 | . . . 28 Largest 2 | . . . 2 Hottest 160 | . . . 160 Shots Fired 55 | . . . 55 Gun 53 | . . . 53 Cannon . | . . . . Launcher 2 | . . . 2 Special . | . . . . Kinetic . | . . . . Thermal 53 | . . . 53 Explosive 2 | . . . 2 Electromagnetic . | . . . . Robot Hit Streak 8 | . . . 8 Robot Miss Streak 3 | . . . 3 Penetration Max . | . . . . Secondary Targets 2 | . . . 2 Max Gunslinging Chain 1 | . . . 1 Shots Hit Robots 44 | . . . 44 Core Hits 26 | . . . 26 Critical Kills . | . . . . Critical Parts Destroyed . | . . . . Critical Strikes . | . . . . Melee Attacks . | . . . . Impact . | . . . . Slashing . | . . . . Piercing . | . . . . Sneak Attacks . | . . . . Combat Hostiles . | . . . . Follow-up Attacks . | . . . . Damage Inflicted 614 | . . . 614 Guns 533 | . . . 533 Cannons . | . . . . Explosions 12 | . . . 12 Melee . | . . . . Ramming 69 | . . . 69 Kinetic . | . . . . Thermal 533 | . . . 533 Explosive 12 | . . . 12 Electromagnetic . | . . . . Impact . | . . . . Slashing . | . . . . Piercing . | . . . . Highest Corruption . | . . . . Average Corruption . | . . . . Corruption Purged . | . . . . Corruption Blocked . | . . . . Overload Shots . | . . . . Overflow Damage . | . . . . Projectiles . | . . . . Explosions . | . . . . Melee . | . . . . Knockbacks 2 | . . . 2 Impact 2 | . . . 2 Kinetic . | . . . . Secondary . | . . . . Self-Inflicted Damage 47 | . . . 47 Shots 1 | . . . 1 Rammed 19 | . . . 19 Targets Rammed 19 | . . . 19 Kicked . | . . . . Crushed . | . . . . Highest Temperature 548 | . . . 548 Average Temperature 195 | . . . 195 Received Heat Transfer 702 | . . . 702 Effects 3 | . . . 3 Shutdowns 1 | . . . 1 Matter Decay 1 | . . . 1 Short Circuit 1 | . . . 1 Siege Activations . | . . . . Robots Corrupted . | . . . . Combat Hostiles . | . . . . Parts Fried . | . . . . Impact Corruptions . | . . . . Robots Melted 2 | . . . 2 Combat Hostiles 2 | . . . 2 Parts Melted 3 | . . . 3 Heat Transferred 1758 | . . . 1758 Parts Sabotaged . | . . . . Parts Stolen . | . . . . Parts Stripped . | . . . . Power Chain Reactions . | . . . . Alert | -11 -10 -9 -8 ------- Run | Yrd Mat Mat Mat Peak Influence 217 | . 11 13 217 Initial 5 | . . 4 5 Average 73 | . 4 10 109 Maximum Alert Level 1 | . . . 1 Low Security (%) 96 | 100 100 100 94 Level 1 3 | . . . 5 Level 2 . | . . . . Level 3 . | . . . . Level 4 . | . . . . Level 5 . | . . . . High Security . | . . . . Max Security . | . . . . Squads Dispatched 2 | . . . 2 Investigation 1 | . . . 1 Extermination . | . . . . Reinforcement 1 | . . . 1 Assault . | . . . . Garrison . | . . . . Intercept . | . . . . Searches Triggered . | . . . . Construction Impeded . | . . . . Haulers Reinforced . | . . . . Active Scanning Responses . | . . . . Cargo Convoy Interrupts . | . . . . Stealth | -11 -10 -9 -8 --------- Run | Yrd Mat Mat Mat Distress Signals 1 | . . . 1 Communications Jammed . | . . . . Distress Signals . | . . . . Times Spotted 17 | . . . 17 Peak Tracking Total 11 | . . . 11 Tactical Retreats . | . . . . Traps | -11 -10 -9 -8 ------- Run | Yrd Mat Mat Mat Traps Triggered 1 | . . . 1 Indirectly . | . . . . Trap Hack Attempts . | . . . . Triggered . | . . . . Disarmed . | . . . . Reprogrammed . | . . . . Reused . | . . . . Traps Extracted . | . . . . Installed . | . . . . Triggered . | . . . . Machines | -11 -10 -9 -8 ---------- Run | Yrd Mat Mat Mat Machines Disabled . | . . . . Max in Single Turn . | . . . . Machines Repaired . | . . . . Machines Dismantled . | . . . . Machines Sabotaged . | . . . . Overloaded Fab Kills . | . . . . Hacking | -11 -10 -9 -8 --------- Run | Yrd Mat Mat Mat Machines Accessed 6 | . 3 2 1 Terminals 5 | . 3 2 . Fabricators . | . . . . Repair Stations 1 | . . . 1 Recycling Units . | . . . . Scanalyzers . | . . . . Garrison Access . | . . . . Total Hacks 13 | . 6 6 1 Successful 10 | . 5 4 1 Failed 3 | . 1 2 . Catastrophic . | . . . . Database Lockouts . | . . . . Manual . | . . . . Terminals 12 | . 6 6 . Fabricators . | . . . . Repair Stations 1 | . . . 1 Recycling Units . | . . . . Scanalyzers . | . . . . Garrison Access . | . . . . Terminal Hacks 9 | . 5 4 . Robot Analysis 1 | . 1 . . Branch Access Points 1 | . 1 . . Emergency Access Points 1 | . 1 . . Locate Traps 1 | . 1 . . Dispatch Records 1 | . . 1 . Transport Status 1 | . . 1 . Reinforcement Status 1 | . . 1 . Zone Layout 2 | . 1 1 . Fabricator Hacks . | . . . . Repair Station Hacks 1 | . . . 1 Refit 1 | . . . 1 Recycling Unit Hacks . | . . . . Scanalyzer . | . . . . Garrison Access Hacks . | . . . . Unauthorized Hacks . | . . . . Terminals . | . . . . Fabricators . | . . . . Repair Stations . | . . . . Recycling Units . | . . . . Scanalyzers . | . . . . Garrison Access . | . . . . Data Cores Recovered . | . . . . Used . | . . . . Hacking Detections 3 | . 2 1 . Full Trace Events . | . . . . Feedback Events . | . . . . Feedback Blocked . | . . . . Robot Schematics Acquired . | . . . . Robots Built . | . . . . Authchips . | . . . . Time . | . . . . Total Robot Build Rating . | . . . . Part Schematics Acquired . | . . . . Parts Built . | . . . . Authchips . | . . . . Time . | . . . . Total Part Build Rating . | . . . . Parts Repaired . | . . . . Time . | . . . . Parts Recycled . | . . . . Recycled Matter . | . . . . Retrieved Matter . | . . . . Retrieved Components . | . . . . Parts Scanalyzed . | . . . . Part Schematics Acquired . | . . . . Parts Damaged . | . . . . Bothacking | -11 -10 -9 -8 ------------ Run | Yrd Mat Mat Mat Used RIF Installer . | . . . . Robots Hacked . | . . . . Non-combat . | . . . . Combat . | . . . . Robot Hacks Applied . | . . . . Relay Couplers Released . | . . . . Fabnet Peak Effective % . | . . . . Robots Rewired . | . . . . Allies Hacked . | . . . . Hacks Repelled . | . . . . Allies | -11 -10 -9 -8 -------- Run | Yrd Mat Mat Mat Total Allies . | . . . . Largest Group . | . . . . Highest-Rated Group . | . . . . Highest-Rated Ally . | . . . . Total Orders . | . . . . Ally Attacks . | . . . . Total Damage . | . . . . Kills . | . . . . Allies Corrupted . | . . . . Allies Melted . | . . . . Intel | -11 -10 -9 -8 ------- Run | Yrd Mat Mat Mat Robot Analysis Total 1 | . 1 . . Derelict Logs Recovered . | . . . . Drone Launches . | . . . . Drone Recoveries . | . . . . Exploration | -11 -10 -9 -8 ------------- Run | Yrd Mat Mat Mat Turns Passed 426 | 10 90 50 276 Spaces Moved 464 | 20 180 100 164 Core 375 | 20 180 100 75 Treads . | . . . . Legs 89 | . . . 89 Wheels . | . . . . Hover . | . . . . Flight . | . . . . Fastest Speed 50 | 50 50 50 50 Average Speed 65 | 50 50 50 94 Slowest Speed 190 | 50 50 50 190 Overloaded Moves . | . . . . Propulsion Burnouts . | . . . . Robots Hopped . | . . . . Cave-ins Triggered . | . . . . Exploration Rate (%) 18 | 3 40 14 17 Regions Visited 3 Branch Regions . Pre-discovered Areas . | . . . . Known Exits Taken . | . . . . Unknown Exits Taken 3 | 1 1 1 . Scrap Searched . | . . . . Spaces Dug . | . . . . Terrain Destroyed 14 | . . . 14 Melee . | . . . . Projectile . | . . . . AOE 14 | . . . 14 Terrain Rammed . | . . . . Walls Destroyed . | . . . . Machines Disabled . | . . . . Actions | -11 -10 -9 -8 --------- Run | Yrd Mat Mat Mat Total 539 | 19 179 99 242 Wait 8 | . . . 8 Move 461 | 19 179 99 164 Hop . | . . . . Pick Up 4 | . . . 4 Fast Attach 10 | . . . 10 Attach 6 | . . . 6 Detach 3 | . . . 3 Swap . | . . . . Drop 1 | . . . 1 Fire 28 | . . . 28 Melee . | . . . . Ram 18 | . . . 18 Kick . | . . . . Crush . | . . . . Escape Stasis . | . . . . Rewire . | . . . . Trap . | . . . . Miscellaneous . | . . . . Route ------- -11/Scrapyard -10/Materials (discovered 2 exits: *Mat / Min) -9/Materials -8/Materials History --------- Turn | Location | Event 5 | -11/Scrapyard | Discovered new exit (range 13) 11 | -11/Scrapyard | Entered Materials 72 | -10/Materials | Identified exit to Mines 79 | -10/Materials | Discovered new exit (range 8) 101 | -10/Materials | Entered another Materials area 101 | -9/Materials | Evolved 2 slots: Propulsion x1, Utility x1 144 | -9/Materials | Discovered new exit (range 15) 151 | -9/Materials | Entered another Materials area 151 | -8/Materials | Evolved 2 slots: Power x1, Utility x1 207 | -8/Materials | Released all parts (3) 386 | -8/Materials | Core integrity fell below 50% 410 | -8/Materials | Core integrity fell below 20% 416 | -8/Materials | Released all parts (1) 427 | -8/Materials | Core destroyed Last Messages --------------- 00389_ Switching to secondary target: G-47 Trooper. 00389_ Aluminum Leg destroyed. 00393_ Critical hit (Burn: +37). 00395_ Aluminum Leg destroyed. 00397_ Backup Power I destroyed. 00399_ Imp. Heat Sink destroyed. 00401_ G-47 Trooper heat damages Lgt. Nuclear Core, Aluminum Leg, Aluminum Leg, Imp. Heat Sink. 00401_ Destroyed Lgt. Nuclear Core. 00401_ G-47 Trooper overheating. 00405_ G-47 Trooper heat damages Aluminum Leg. 00405_ G-47 Trooper critical meltdown. 00411_ Aluminum Leg destroyed. 00413_ Thermal Generator destroyed. 00413_ Backup Laser I destroyed. 00416_ Released Weapon Cycler. 00416_ Acquired 59 matter. 00417_ Slammed into G-47 Trooper. 00422_ U-05 Engineer builds a Wall. 00426_ Slammed into G-47 Trooper. Map ----- +----------------------------------------------------+ | ????????????????????????????????????????????????? | | ????????????????????????????????????????????????? | | ????????????????????????????????????????????????? | | ????????????????????????????????????????????????? | | ????????????????????????????????????????????????? | | ????????????????????????????????????????????????? | | ????????????????????????????????????????????????? | | ????????????????????????????????????????????????? | | ????????????????????????????????????????????????? | | ????????????????????????????????????????????????? | | ????????????????????????????????????????????????? | | ????????????????????????????????????????????????? | | ????????????????????????????????????????????????? | | ?##########?????????????????????????????????????? | | ?# #?????????????????????????????????????? | | ?# """ #?????????????????????????????????????? | | ?# """!#?????????????????????????????????????? | | ?# """[#?????????????????????????????????????? | | ?# [%*/=#?????????????????#???????????????????? | | ?# "!"%#???????????????? #???????????????????? | | ?# "R"*######??????????? #???????????????????? | | ?# """%## #?????????? #???????????????????? | | ?# %!### ###????????? #???????????????????? | | ?#####/#/## #???????? #???????????????????? | | ?????# ######### #???????????????????? | | ?????# = T @gg #???????????????????? | | ?????# ##########/##???????????????????? | | ?????#### # #???????????????????????????????? | | ????????# ### ###???????????????????????????????? | | ????????# #?# #?????????????????????????????????? | | ????????# #?# #?????????????????????????????????? | | ????????# #?# #?????????????????????????????????? | | ????????# #?# #?????????????????????????????????? | | ????????# #?# #?????????????????????????????????? | | ????????# #?#/#?????????????????????????????????? | | ????????# #?? ?????????????????????????????????? | | ????????# #??""?????????????????????????????????? | | ????????# #???"?????????????????????????????????? | | ####????# #?????????????????????????????????????? | | # ???# #?????????????????????????????????????? | | # ???# #???????#?????????????????????????????? | | # ??# #?????? #?????????????????????????????? | | # ??# #????? #?????????????????????????????? | | # ! ## ##?? #????? ??????????????????????? | | # # #??"" #???? ??????????????????????? | | # + #??"" #?? ???????????????????????? | | # # +??"" ?? ?? #????????????????????? | | # ! # #?? ?# ? #????????????????????? | | # ?# ### ## ## # ??????????????????? | | # ?# ?????????????????? | +----------------------------------------------------+ Best States ------------- Heat Dissipation 45 Energy Generation 18 Energy Capacity 240 Matter Stores 300 Matter Capacity 300 Sight Range 16 Terrain Scan Density 10 Weapon Cycling 30 Evasion (%) 55 Item Schematics ----------------- None Robot Schematics ------------------ None Fabricated ------------ Nothing Alien Tech Used ----------------- None Achievements -------------- None Challenges ------------ None Game ------ Seed SkeletonAbsorptionShotgun Manual? 0 Play Time 00:07:55 Cumulative 32.5 hours Start 2024.04.05 @ 03:00:54 End 2024.04.05 @ 03:08:31 Sessions 1 Manual Loads 0 Difficulty Rogue Special Mode None Game No. 89 Rogue 49 Adventurer 14 Explorer 26 Win Type - Total 0 Types 0/0/0/0/0/0/0/0/0 Lore% 22 Gallery% 31 Achievement% 26 Wizard Run 0 Options --------- Layout 0 ASCII 0 Keyboard 1 Movement Vi Keybinds 0 Fullscreen 1 Font 18/SmallcapsGlow Map View 76x50 Zoom Use 0% Tactical HUD 1 Map Filters NONE Filters NONE Steam 1 RUN: 0520ed22-7187-430d-b1dd-16545fddc4ef